bitfinex/quotes_SOLUSD_20250922
["timestamp","ask_amount","ask_price","bid_price","bid_amount"]
[1758549802818,4.05099303,224.11,224.1,35.94]
[1758549803003,26.66,224.15,224.1,35.94]
[1758549803199,0.66,224.2,224.11,0.68]
[1758549803397,4.05099303,224.19,224.11,0.68]
[1758549803594,4.05099303,224.15,224.12,35.94]
[1758549804119,0.66,224.17,224.12,35.94]
[1758549804319,4.05099303,224.13,224.12,35.94]
[1758549804501,4.71099303,224.13,224.07,36.14]
[1758549804817,4.05099303,224.09,224.08,35.96]
[1758549805892,0.66,224.12,224.08,35.96]
[1758549806093,4.05099303,224.09,224.08,35.96]
[1758549807031,30.71099303,224.09,224.08,35.96]
[1758549807327,30.71099303,224.09,224.08,35.92]
[1758549807529,35.17348577,224.09,224.08,35.92]
[1758549807907,35.17348577,224.09,224.0,0.2]
[1758549808221,4.05099303,224.03,224.01,35.92]
[1758549808633,4.05099303,224.04,224.01,35.92]
[1758549808828,4.05099303,224.03,224.01,35.92]
[1758549809333,4.05099303,224.02,224.01,35.92]
[1758549809706,26.0,224.03,224.01,35.92]
[1758549809909,4.05099303,224.02,224.01,35.92]
[1758549810830,26.0,224.06,224.01,35.92]
[1758549810831,26.66,224.06,224.01,35.92]
[1758549811032,4.05099303,224.04,224.01,36.61]
[1758549811325,4.05099303,224.03,224.01,35.92]
[1758549811509,0.66,224.05,224.01,35.92]
[1758549811825,4.05099303,224.02,224.01,35.92]
[1758549812205,4.71099303,224.02,224.01,35.92]
[1758549813014,0.66,224.02,224.01,35.92]
[1758549813218,4.71099303,224.02,224.01,35.92]
[1758549813422,4.71099303,224.02,224.0,0.2]
[1758549813734,4.05099303,224.01,224.0,0.2]
[1758549814122,30.05099303,224.01,224.0,0.2]
[1758549815413,26.0,224.01,224.0,0.2]
[1758549815619,4.05099303,224.01,224.0,0.2]
[1758549816925,26.0,224.04,224.0,0.2]
[1758549817142,4.05099303,224.01,224.0,0.2]
[1758549817530,0.66,224.03,224.0,0.2]
[1758549817711,4.05099303,224.01,224.0,0.2]
[1758549818825,4.71099303,224.01,224.0,0.2]
[1758549819216,4.05099303,224.01,224.0,0.2]
[1758549819539,30.05099303,224.01,224.0,0.2]
[1758549820045,4.05099303,224.02,224.0,0.2]
[1758549820216,8.08895446,224.07,224.0,0.2]
[1758549820416,4.05099303,224.03,224.0,0.2]
[1758549820944,4.05099303,224.02,224.0,0.2]
[1758549821615,4.05099303,224.01,224.0,0.2]
[1758549822231,31.1235614,224.04,224.0,0.2]
[1758549822537,4.05099303,224.01,224.0,0.2]
[1758549822921,4.71099303,224.01,224.0,0.2]
[1758549823326,9.17507945,224.01,224.0,0.2]
[1758549823724,5.12408642,224.01,224.0,0.2]
[1758549824046,9.17507945,224.01,224.0,0.2]
[1758549824223,4.05099303,224.01,224.0,0.2]
[1758549824537,13.59559401,224.06,224.0,0.2]
[1758549824538,20.0,224.17,224.0,40.88099303]
[1758549824744,4.05099303,224.09,224.01,4.74099303]
[1758549825035,4.05099303,224.09,224.0,36.14]
[1758549825036,4.05099303,224.09,224.02,4.74099303]
[1758549825247,4.05099303,224.1,224.03,4.74099303]
[1758549825422,4.05099303,224.11,224.04,4.74099303]
[1758549825616,4.05099303,224.12,224.05,0.69]
[1758549825812,4.05099303,224.12,224.06,35.96]
[1758549826016,4.05099303,224.09,224.06,0.69]
[1758549826348,4.05099303,224.08,224.07,35.94]
[1758549826548,4.05099303,224.09,224.07,36.63]
[1758549826716,26.0,224.05,224.0,0.2]
[1758549826920,26.0,224.03,224.01,36.63]
[1758549827148,26.0,224.03,224.02,0.69]
[1758549828023,26.0,224.03,224.02,36.63]
[1758549828545,0.66,224.14,224.03,13.59559401]
[1758549828744,5.95383516,224.11,224.04,6.64383516]
[1758549829042,5.95383516,224.12,224.05,20.23942917]
[1758549829347,5.95383516,224.14,224.07,19.54942917]
[1758549829523,26.0,224.11,224.08,36.65]
[1758549829843,26.0,224.11,224.09,0.69]
[1758549830018,5.95383516,224.14,224.1,0.69]
[1758549830214,5.95383516,224.15,224.11,0.69]
[1758549830526,5.95383516,224.17,224.11,0.69]
[1758549830734,5.95383516,224.18,224.11,6.64383516]
[1758549830920,26.0,224.15,224.12,0.69]
[1758549831120,5.95383516,224.2,224.13,0.69]
[1758549831422,5.95383516,224.2,224.14,35.94]
[1758549831621,0.66,224.24,224.15,0.69]
[1758549831828,5.95383516,224.22,224.15,0.69]
[1758549832117,5.95383516,224.21,224.15,0.69]
[1758549832318,26.0,224.18,224.15,0.69]
[1758549832521,5.95383516,224.19,224.14,35.94]
[1758549832725,26.0,224.16,224.15,0.69]
[1758549832920,26.0,224.16,224.15,35.92]
[1758549833139,26.0,224.14,224.12,0.69]
[1758549833316,26.0,224.14,224.13,35.92]
[1758549833722,26.0,224.14,224.13,0.69]
[1758549834025,5.95383516,224.14,224.1,0.69]
[1758549834346,5.95383516,224.15,224.13,35.9]
[1758549834540,5.95383516,224.16,224.14,35.9]
[1758549834843,26.0,224.15,224.14,36.59]
[1758549835450,0.66,224.25,224.14,36.59]
[1758549835651,26.0,224.19,224.15,0.69]
[1758549835824,26.0,224.17,224.15,0.69]
[1758549836223,0.66,224.27,224.16,13.59559401]
[1758549836426,26.0,224.2,224.17,0.69]
[1758549836652,26.0,224.2,224.18,0.69]
[1758549836853,26.0,224.2,224.19,35.9]
[1758549837156,26.0,224.2,224.19,36.59]
[1758549837322,26.0,224.21,224.19,36.59]
[1758549837527,5.95383516,224.24,224.2,0.68]
[1758549837754,26.0,224.21,224.19,35.9]
[1758549838926,26.0,224.21,224.19,36.58]
[1758549839127,26.0,224.2,224.19,35.9]
[1758549839745,26.0,224.24,224.19,35.9]
[1758549839955,26.0,224.2,224.19,35.9]
[1758549840651,5.95383516,224.24,224.19,36.58]
[1758549840957,5.95383516,224.24,224.2,0.68]
[1758549841250,26.0,224.26,224.19,35.9]
[1758549841251,26.0,224.2,224.19,35.9]
[1758549841753,0.2,224.27,224.19,46.9942928]
[1758549841953,0.2,224.27,224.21,5.95383516]
[1758549842261,5.95383516,224.3,224.23,5.95383516]
[1758549842438,5.95383516,224.3,224.24,36.5]
[1758549842637,5.95383516,224.32,224.25,5.95383516]
[1758549842858,0.72,224.33,224.26,6.63383516]
[1758549842859,5.95383516,224.33,224.26,6.63383516]
[1758549843034,5.95383516,224.34,224.27,6.63383516]
[1758549843361,0.72,224.36,224.28,6.63383516]
[1758549843564,5.95383516,224.36,224.29,35.82]
[1758549843773,26.0,224.33,224.29,35.82]
[1758549844067,5.95383516,224.35,224.3,0.68]
[1758549844360,5.95383516,224.36,224.31,0.68]
[1758549844568,5.95383516,224.37,224.32,0.68]
[1758549844867,5.95383516,224.37,224.3,13.59559401]
[1758549845154,26.0,224.33,224.3,14.27559401]
[1758549845364,26.0,224.33,224.31,35.82]
[1758549845539,26.0,224.33,224.31,36.5]
[1758549845735,26.0,224.31,224.19,11.15087808]
[1758549845943,26.0,224.29,224.24,13.59559401]
[1758549846165,5.95383516,224.29,224.25,35.82]
[1758549846362,5.95383516,224.29,224.26,0.68]
[1758549846654,26.0,224.29,224.27,0.68]
[1758549846837,26.0,224.29,224.28,36.5]
[1758549847557,26.0,224.29,224.28,50.09559401]
[1758549847759,26.0,224.31,224.28,50.09559401]
[1758549847941,26.0,224.31,224.29,0.68]
[1758549848141,26.0,224.31,224.3,0.68]
[1758549848343,26.0,224.3,224.28,50.09559401]
[1758549848546,26.0,224.3,224.28,49.41559401]
[1758549848738,26.0,224.33,224.29,0.68]
[1758549848940,26.0,224.33,224.3,0.68]
[1758549849242,5.95383516,224.38,224.31,6.63383516]
[1758549849442,5.95383516,224.38,224.32,35.82]
[1758549849760,26.0,224.36,224.32,35.82]
[1758549849936,26.0,224.36,224.32,36.5]
[1758549850132,26.0,224.36,224.33,0.68]
[1758549850337,6.67383516,224.42,224.34,6.63383516]
[1758549850651,0.1,224.45,224.38,5.95383516]
[1758549850950,0.1,224.45,224.39,41.77383516]
[1758549851152,26.0,224.43,224.39,35.82]
[1758549851456,26.0,224.43,224.4,0.68]
[1758549851658,0.1,224.45,224.4,0.68]
[1758549851961,6.05383516,224.44,224.36,0.68]
[1758549852267,26.0,224.41,224.37,55.34942917]
[1758549852567,26.0,224.41,224.39,13.59559401]
[1758549852766,26.0,224.42,224.39,13.59559401]
[1758549852967,26.0,224.42,224.39,0.68]
[1758549853460,0.1,224.44,224.39,0.68]
[1758549854167,6.05383516,224.44,224.39,0.68]
[1758549854467,31.95383516,224.4,224.33,13.59559401]
[1758549854772,26.0,224.4,224.35,13.59559401]
[1758549855071,26.0,224.4,224.35,14.29559401]
[1758549855241,26.0,224.4,224.36,0.7]
[1758549855441,26.0,224.4,224.37,0.7]
[1758549855747,26.0,224.4,224.38,0.7]
[1758549856057,0.1,224.44,224.39,36.5]
[1758549856266,26.0,224.42,224.39,36.5]
[1758549856644,26.0,224.42,224.39,35.8]
[1758549857052,26.0,224.42,224.39,36.5]
[1758549857643,26.0,224.42,224.4,35.8]
[1758549857849,26.0,224.42,224.41,35.8]
[1758549858142,5.95383516,224.42,224.41,35.8]
[1758549858477,6.61383516,224.42,224.41,35.8]
[1758549859364,5.95383516,224.42,224.41,35.8]
[1758549859555,6.61383516,224.42,224.41,35.8]
[1758549859744,5.95383516,224.42,224.41,35.8]
[1758549859939,26.0,224.39,224.35,0.7]
[1758549860160,26.0,224.39,224.33,13.59559401]
[1758549860161,6.61383516,224.39,224.33,13.59559401]
[1758549860376,5.95383516,224.39,224.34,35.8]
[1758549860576,31.95383516,224.39,224.34,36.5]
[1758549860768,31.95383516,224.39,224.34,0.7]
[1758549861070,31.95383516,224.39,224.35,35.8]
[1758549861250,26.0,224.37,224.36,35.8]
[1758549861444,5.95383516,224.41,224.36,36.5]
[1758549861754,31.95383516,224.43,224.36,36.5]
[1758549861951,26.0,224.38,224.36,36.5]
[1758549862260,26.0,224.38,224.36,0.7]
[1758549862463,26.0,224.41,224.37,35.78]
[1758549862673,26.0,224.41,224.37,36.48]
[1758549862856,31.95383516,224.41,224.37,36.48]
[1758549863165,31.95383516,224.41,224.37,35.78]
[1758549864172,0.1,224.44,224.38,0.7]
[1758549864362,6.05383516,224.44,224.38,0.7]
[1758549864560,5.95383516,224.42,224.34,5.95383516]
[1758549864768,5.95383516,224.42,224.36,13.59559401]
[1758549865174,26.1,224.44,224.36,14.29559401]
[1758549865375,5.95383516,224.43,224.36,14.29559401]
[1758549865669,26.1,224.44,224.36,14.29559401]
[1758549865877,5.95383516,224.43,224.36,14.29559401]
[1758549866063,5.95383516,224.42,224.36,14.29559401]
[1758549866272,32.61383516,224.42,224.37,35.78]
[1758549866467,0.66,224.41,224.38,35.78]
[1758549866669,5.95383516,224.4,224.38,35.78]
[1758549867069,5.95383516,224.4,224.34,0.7]
[1758549867270,5.95383516,224.4,224.35,35.78]
[1758549867463,5.95383516,224.4,224.35,36.46]
[1758549867975,5.95383516,224.4,224.36,0.68]
[1758549868274,5.95383516,224.41,224.36,0.68]
[1758549868475,0.77,224.44,224.35,35.78]
[1758549868476,0.1,224.44,224.37,6.63383516]
[1758549868778,26.0,224.42,224.38,0.68]
[1758549869155,26.0,224.42,224.37,5.95383516]
[1758549869355,26.0,224.42,224.38,0.68]
[1758549869965,26.0,224.42,224.37,13.59559401]
[1758549870170,26.0,224.42,224.37,14.27559401]
[1758549870357,26.0,224.42,224.38,0.68]
[1758549870972,6.62383516,224.41,224.32,0.68]
[1758549871175,26.0,224.43,224.35,5.95383516]
[1758549871479,26.0,224.4,224.33,5.95383516]
[1758549871772,5.95383516,224.39,224.36,35.78]
[1758549871976,0.67,224.39,224.36,35.78]
[1758549872177,6.62383516,224.39,224.36,35.78]
[1758549872580,6.62383516,224.39,224.33,13.59559401]
[1758549872777,6.62383516,224.39,224.34,35.78]
[1758549873086,5.95383516,224.36,224.3,13.59559401]
[1758549873283,26.0,224.33,224.26,19.54942917]
[1758549873587,26.0,224.33,224.27,35.78]
[1758549873973,26.0,224.33,224.28,14.27559401]
[1758549874170,0.67,224.39,224.3,19.54942917]
[1758549874475,26.0,224.35,224.31,0.68]
[1758549874681,26.0,224.35,224.32,36.46]
[1758549874865,26.0,224.35,224.33,0.68]
[1758549875076,26.0,224.35,224.32,35.78]
[1758549875584,5.95383516,224.4,224.33,0.68]
[1758549876081,5.95383516,224.4,224.34,49.37559401]
[1758549876280,6.62383516,224.41,224.35,35.78]
[1758549876590,0.77,224.44,224.36,6.63383516]
[1758549876791,26.0,224.4,224.36,6.63383516]
[1758549877286,26.0,224.4,224.37,0.68]
[1758549877980,26.0,224.4,224.38,35.78]
[1758549878688,0.67,224.42,224.25,13.42327639]
[1758549878871,5.95383516,224.4,224.33,0.68]
[1758549879183,5.95383516,224.34,224.22,47.28943917]
[1758549879362,5.95383516,224.32,224.23,0.68]
[1758549879563,5.95383516,224.3,224.23,0.68]
[1758549879770,5.95383516,224.3,224.24,35.78]
[1758549879971,5.95383516,224.3,224.24,13.59559401]
[1758549880182,5.95383516,224.3,224.25,35.78]
[1758549880390,5.95383516,224.3,224.26,0.68]
[1758549880581,31.95383516,224.32,224.26,0.68]
[1758549880779,31.95383516,224.32,224.25,35.78]
[1758549880780,5.95383516,224.3,224.25,35.78]
[1758549881086,26.0,224.32,224.26,35.78]
[1758549881298,5.95383516,224.31,224.26,36.46]
[1758549881593,26.0,224.32,224.27,0.68]
[1758549881789,26.0,224.32,224.28,6.63383516]
[1758549881979,26.0,224.34,224.29,0.68]
[1758549882590,31.95383516,224.32,224.3,35.78]
[1758549882789,0.67,224.31,224.25,0.68]
[1758549882962,5.95383516,224.3,224.26,35.78]
[1758549883168,31.95383516,224.32,224.26,35.78]
[1758549884092,0.67,224.31,224.27,35.78]
[1758549884296,5.95383516,224.28,224.23,13.59559401]
[1758549884773,26.0,224.25,224.24,35.78]
[1758549885871,26.0,224.25,224.24,36.46]
[1758549886071,26.0,224.25,224.24,35.78]
[1758549886268,26.0,224.24,224.22,36.14]
[1758549886472,26.0,224.24,224.23,35.78]
[1758549886876,0.2,224.29,224.23,36.46]
[1758549887077,5.95383516,224.31,224.24,20.22942917]
[1758549887297,0.67,224.34,224.25,6.63383516]
[1758549887500,26.0,224.29,224.25,6.63383516]
[1758549887678,5.95383516,224.32,224.26,0.68]
[1758549887884,6.62383516,224.32,224.27,35.78]
[1758549888086,26.0,224.29,224.27,35.78]
[1758549888482,31.95383516,224.32,224.27,35.78]
[1758549888683,30.72355517,224.32,224.27,35.78]
[1758549888998,4.05355517,224.29,224.22,36.82]
[1758549889190,26.0,224.29,224.23,35.78]
[1758549889388,26.0,224.29,224.24,35.78]
[1758549889588,30.72355517,224.29,224.24,35.78]
[1758549889785,26.67,224.29,224.24,35.78]
[1758549889990,30.72355517,224.29,224.24,35.78]
[1758549890185,0.67,224.28,224.24,35.78]
[1758549890590,4.05355517,224.3,224.25,0.68]
[1758549890784,0.67,224.29,224.24,35.78]
[1758549890988,0.67,224.32,224.25,0.68]
[1758549891298,4.05355517,224.31,224.25,0.68]
[1758549891485,0.67,224.32,224.24,35.78]
[1758549891686,4.05355517,224.31,224.24,35.78]
[1758549891996,26.0,224.32,224.26,4.05355517]
[1758549892301,26.0,224.32,224.27,4.73355517]
[1758549892592,0.2,224.34,224.28,36.46]
[1758549892790,0.2,224.34,224.28,40.51355517]
[1758549893593,0.2,224.34,224.29,4.05355517]
[1758549893794,30.05355517,224.37,224.3,17.64914918]
[1758549893970,4.05355517,224.37,224.3,17.64914918]
[1758549894284,4.05355517,224.4,224.33,4.05355517]
[1758549894493,4.05355517,224.4,224.34,35.78]
[1758549895095,4.05355517,224.39,224.34,35.78]
[1758549895396,4.05355517,224.4,224.35,0.68]
[1758549895591,0.67,224.39,224.34,35.78]
[1758549895794,4.05355517,224.38,224.34,35.78]
[1758549895997,4.05355517,224.35,224.27,0.68]
[1758549896180,4.05355517,224.35,224.28,35.78]
[1758549896698,4.05355517,224.34,224.28,35.78]
[1758549897287,4.05355517,224.35,224.28,40.53355517]
[1758549897488,30.05355517,224.35,224.28,40.53355517]
[1758549897802,4.05355517,224.35,224.28,40.53355517]
[1758549898802,4.05355517,224.34,224.28,36.48]
[1758549899199,4.05355517,224.33,224.29,35.78]
[1758549899797,30.05355517,224.34,224.29,35.78]
[1758549899983,30.05355517,224.34,224.29,36.48]
[1758549900190,30.76355517,224.34,224.27,4.05355517]
[1758549900377,4.25355517,224.33,224.26,0.7]
[1758549900576,4.05355517,224.27,224.2,0.7]
[1758549900781,4.05355517,224.26,224.23,35.78]
[1758549901298,4.76355517,224.25,224.17,4.75355517]
[1758549901607,4.05355517,224.24,224.18,13.59559401]
[1758549901791,4.05355517,224.2,224.13,0.7]
[1758549901990,4.05355517,224.23,224.16,4.05355517]
[1758549902284,4.05355517,224.24,224.17,4.75355517]
[1758549902492,4.05355517,224.24,224.15,13.59559401]
[1758549902686,4.05355517,224.24,224.15,4.75355517]
[1758549902687,30.05355517,224.22,224.15,4.75355517]
[1758549902900,4.05355517,224.2,224.16,35.78]
[1758549903404,26.0,224.22,224.17,0.7]
[1758549903703,4.05355517,224.24,224.18,0.7]
[1758549903900,26.71,224.27,224.18,0.7]
[1758549904102,26.0,224.28,224.21,13.59559401]
[1758549904401,4.05355517,224.29,224.22,36.48]
[1758549904585,4.05355517,224.29,224.22,40.53355517]
[1758549904776,4.05355517,224.3,224.23,17.64914918]
[1758549904982,4.05355517,224.33,224.25,4.05355517]
[1758549905197,4.05355517,224.34,224.27,4.05355517]
[1758549905401,4.05355517,224.35,224.28,35.78]
[1758549905775,26.71,224.37,224.28,35.78]
[1758549905776,4.05355517,224.34,224.28,35.78]
[1758549905992,26.0,224.36,224.26,0.7]
[1758549905993,4.05355517,224.32,224.26,0.7]
[1758549906204,4.05355517,224.29,224.27,35.78]
[1758549906382,4.05355517,224.29,224.22,13.59559401]
[1758549906701,4.05355517,224.28,224.23,35.78]
[1758549906908,26.0,224.35,224.24,0.7]
[1758549906909,4.05355517,224.32,224.24,0.7]
[1758549907092,4.05355517,224.29,224.24,0.7]
[1758549907294,4.05355517,224.31,224.26,13.59559401]
[1758549907590,0.71,224.34,224.26,13.59559401]
[1758549907591,4.05355517,224.33,224.27,0.7]
[1758549907793,4.05355517,224.32,224.28,35.78]
[1758549908275,4.05355517,224.32,224.29,0.7]
[1758549908482,4.05355517,224.34,224.3,0.7]
[1758549908676,4.05355517,224.34,224.28,35.78]
[1758549908879,4.05355517,224.32,224.28,35.78]
[1758549909077,4.05355517,224.33,224.29,0.7]
[1758549909280,0.91,224.41,224.3,0.7]
[1758549909505,0.91,224.41,224.31,13.59559401]
[1758549909506,4.05355517,224.38,224.31,13.59559401]
[1758549910193,4.05355517,224.37,224.32,0.7]
[1758549910399,4.05355517,224.35,224.33,35.78]
[1758549910803,4.05355517,224.37,224.34,0.7]
[1758549910992,4.05355517,224.39,224.35,0.7]
[1758549911395,4.05355517,224.39,224.36,0.7]
[1758549911597,0.1,224.44,224.37,0.7]
[1758549911901,0.1,224.44,224.38,35.78]
[1758549911902,4.05355517,224.42,224.38,35.78]
[1758549912406,4.05355517,224.4,224.39,35.78]
[1758549912712,4.76355517,224.4,224.34,0.7]
[1758549912892,4.76355517,224.4,224.32,13.59559401]
[1758549912893,0.71,224.4,224.35,35.78]
[1758549913205,4.05355517,224.38,224.35,36.48]
[1758549913510,4.05355517,224.38,224.35,35.78]
[1758549913714,4.05355517,224.36,224.31,14.29559401]
[1758549914002,26.0,224.38,224.32,36.46]
[1758549914194,4.05355517,224.36,224.32,36.46]
[1758549914395,0.76,224.44,224.33,14.27559401]
[1758549914603,4.05355517,224.37,224.33,14.27559401]
[1758549914802,4.05355517,224.39,224.34,0.68]
[1758549915005,4.05355517,224.41,224.35,13.59559401]
[1758549915315,4.05355517,224.41,224.36,0.68]
[1758549915489,4.05355517,224.41,224.37,36.46]
[1758549915683,4.05355517,224.41,224.28,13.49605434]
[1758549915684,4.05355517,224.41,224.34,0.68]
[1758549915898,4.05355517,224.35,224.3,13.59559401]
[1758549916193,4.05355517,224.35,224.31,35.76]
[1758549916603,4.05355517,224.32,224.27,0.68]
[1758549916800,4.05355517,224.32,224.28,50.03559401]
[1758549917015,4.05355517,224.32,224.29,0.68]
[1758549917219,4.05355517,224.34,224.3,0.68]
[1758549917385,4.05355517,224.35,224.31,0.68]
[1758549917587,0.86,224.39,224.32,0.68]
[1758549917792,4.05355517,224.38,224.33,49.35559401]
[1758549917992,4.05355517,224.38,224.33,50.03559401]
[1758549918407,4.05355517,224.38,224.34,0.68]
[1758549918686,4.05355517,224.38,224.33,49.35559401]
[1758549918912,4.05355517,224.38,224.34,0.68]
[1758549919100,26.0,224.4,224.35,0.68]
[1758549919299,4.05355517,224.4,224.36,0.68]
[1758549919724,4.05355517,224.38,224.37,35.76]
[1758549920205,4.05355517,224.38,224.32,13.59559401]
[1758549920410,0.66,224.39,224.32,13.59559401]
[1758549920612,4.05355517,224.35,224.33,35.76]
[1758549921399,4.71355517,224.35,224.19,26.0]
[1758549921606,4.05355517,224.33,224.28,13.59559401]
[1758549921795,0.66,224.35,224.29,0.68]
[1758549922001,4.05355517,224.35,224.3,13.59559401]
[1758549922294,4.05355517,224.33,224.28,13.59559401]
[1758549922508,4.05355517,224.33,224.29,35.76]
[1758549922702,4.05355517,224.31,224.25,0.68]
[1758549922908,4.05355517,224.29,224.26,31.22]
[1758549923117,4.05355517,224.29,224.24,0.68]
[1758549923420,4.05355517,224.29,224.25,36.44]
[1758549924000,4.05355517,224.31,224.26,0.68]
[1758549924213,4.05355517,224.31,224.27,0.68]
[1758549924919,4.05355517,224.31,224.26,13.59559401]
[1758549925224,4.05355517,224.29,224.25,35.76]
[1758549925405,4.05355517,224.27,224.21,0.68]
[1758549925604,4.05355517,224.25,224.22,35.76]
[1758549925802,0.66,224.32,224.22,35.76]
[1758549925803,4.05355517,224.26,224.23,0.68]
[1758549925998,4.05355517,224.26,224.24,0.68]
[1758549926203,4.05355517,224.26,224.25,35.76]
[1758549926614,4.05355517,224.3,224.25,36.44]
[1758549926804,4.05355517,224.32,224.26,14.27559401]
[1758549927205,4.05355517,224.32,224.26,18.73466674]
[1758549927722,4.05355517,224.34,224.28,13.59559401]
[1758549927907,4.05355517,224.34,224.3,13.59559401]
[1758549928106,4.05355517,224.34,224.31,35.76]
[1758549928427,4.05355517,224.32,224.28,0.66]
[1758549928728,4.05355517,224.3,224.25,13.59559401]
[1758549928931,4.05355517,224.3,224.26,35.76]
[1758549929124,4.05355517,224.3,224.26,36.42]
[1758549929333,0.2,224.31,224.27,0.66]
[1758549929502,0.2,224.31,224.26,35.76]
[1758549929822,4.05355517,224.3,224.27,35.76]
[1758549930010,4.05355517,224.3,224.27,36.42]
[1758549930205,0.2,224.31,224.28,0.66]
[1758549930508,0.2,224.31,224.29,0.66]
[1758549930710,0.2,224.31,224.3,13.59559401]
[1758549930914,26.0,224.35,224.3,14.25559401]
[1758549931114,4.05355517,224.36,224.31,0.66]
[1758549931321,0.2,224.37,224.32,40.87788312]
[1758549931534,0.2,224.37,224.33,13.59559401]
[1758549931833,4.05355517,224.4,224.33,14.25559401]
[1758549933227,26.0,224.36,224.3,0.66]
[1758549933521,26.0,224.36,224.31,49.35559401]
[1758549933733,0.67,224.39,224.32,0.66]
[1758549933909,4.05355517,224.36,224.32,0.66]
[1758549934230,4.05355517,224.36,224.33,0.66]
[1758549934428,4.05355517,224.38,224.31,49.35559401]
[1758549934605,4.05355517,224.38,224.31,50.01559401]
[1758549934805,4.05355517,224.36,224.31,50.01559401]
[1758549935005,4.05355517,224.36,224.31,49.35559401]
[1758549935418,4.05355517,224.36,224.31,50.01559401]
[1758549935621,4.05355517,224.34,224.27,0.66]
[1758549935823,4.05355517,224.34,224.28,49.35559401]
[1758549936327,4.05355517,224.32,224.28,13.59559401]
[1758549936517,26.67,224.35,224.29,35.76]
[1758549936702,4.05355517,224.32,224.29,35.76]
[1758549936906,4.05355517,224.3,224.26,13.59559401]
[1758549937136,4.05355517,224.3,224.28,13.59559401]
[1758549937432,4.05355517,224.3,224.21,13.59559401]
[1758549937433,26.67,224.29,224.21,13.59559401]
[1758549937612,26.67,224.29,224.2,0.66]
[1758549937613,4.05355517,224.24,224.22,35.76]
[1758549937822,4.05355517,224.24,224.2,0.66]
[1758549938013,4.05355517,224.22,224.21,13.59559401]
[1758549938215,4.05355517,224.22,224.18,13.59559401]
[1758549938531,4.05355517,224.2,224.19,35.76]
[1758549938832,4.05355517,224.21,224.19,35.76]
[1758549939207,0.67,224.26,224.2,14.25559401]
[1758549939408,0.67,224.3,224.22,13.59559401]
[1758549939727,4.05355517,224.29,224.24,13.59559401]
[1758549939925,4.05355517,224.29,224.25,0.66]
[1758549940126,26.67,224.33,224.26,0.66]
[1758549940307,0.67,224.37,224.27,49.35559401]
[1758549940512,4.05355517,224.33,224.27,49.35559401]
[1758549940726,4.05355517,224.33,224.27,50.01559401]
[1758549941410,26.0,224.3,224.22,8.51335585]
[1758549941613,4.05355517,224.3,224.24,0.66]
[1758549942809,26.0,224.37,224.24,0.66]
[1758549942810,4.05355517,224.32,224.24,0.66]
[1758549943015,4.05355517,224.32,224.26,13.59559401]
[1758549943232,4.05355517,224.32,224.18,0.66]
[1758549943233,4.05355517,224.27,224.18,0.66]
[1758549943526,4.05355517,224.23,224.19,49.35559401]
[1758549943724,0.67,224.27,224.2,0.66]
[1758549943921,4.05355517,224.23,224.2,0.66]
[1758549944229,4.05355517,224.23,224.19,49.35559401]
[1758549944626,4.05355517,224.23,224.19,50.01559401]
[1758549945136,4.05355517,224.23,224.17,36.16]
[1758549945137,4.05355517,224.21,224.17,36.16]